bitfinex-derivatives/quotes_SOLF0:USTF0_20240820
["timestamp","ask_amount","ask_price","bid_price","bid_amount"]
[1724131746613,0.05088868,147.75,147.74,3.3824]
[1724131747313,0.05088868,147.75,147.7,3.34992713]
[1724131747515,3.49919393,147.75,147.7,3.34992713]
[1724131747717,0.05088868,147.75,147.7,3.45743312]
[1724131748206,3.39405443,147.75,147.7,3.45743312]
[1724131748517,3.39405443,147.75,147.72,3.3827]
[1724131749212,3.39405443,147.75,147.7,3.45743312]
[1724131749413,0.05088868,147.75,147.71,25.91]
[1724131749616,3.37838512,147.75,147.71,25.91]
[1724131750007,3.37838512,147.75,147.7,3.35792777]
[1724131750204,3.37838512,147.75,147.68,2.518]
[1724131750506,3.37838512,147.75,147.68,5.97770365]
[1724131750709,3.37838512,147.75,147.68,2.518]
[1724131752614,3.37838512,147.75,147.68,1.2574]
[1724131753312,3.37838512,147.75,147.7,3.3832]
[1724131754020,29.28838512,147.75,147.7,3.3832]
[1724131754211,3.37838512,147.75,147.71,3.3831]
[1724131754411,3.37838512,147.75,147.68,25.91]
[1724131755313,3.37838512,147.75,147.7,3.3833]
[1724131755516,3.37838512,147.75,147.68,25.91]
[1724131756420,3.37838512,147.75,147.7,25.91]
[1724131756616,0.05088868,147.75,147.7,25.91]
[1724131757215,3.45492407,147.75,147.7,29.36814284]
[1724131757721,0.05088868,147.75,147.74,3.3824]
[1724131757915,3.40521284,147.75,147.74,3.3824]
[1724131758119,0.05088868,147.75,147.74,3.3824]
[1724131758622,3.50213198,147.75,147.74,3.3824]
[1724131758812,0.05088868,147.75,147.74,3.3824]
[1724131759312,3.46595613,147.75,147.74,3.3824]
[1724131759519,3.46595613,147.75,147.74,6.73897753]
[1724131760025,0.05088868,147.75,147.74,3.3824]
[1724131760420,3.37940457,147.75,147.74,6.79374844]
[1724131760915,0.05088868,147.75,147.74,3.3824]
[1724131761320,25.91,147.85,147.73,25.91]
[1724131761518,3.3803,147.84,147.75,25.91]
[1724131761824,25.91,147.78,147.67,25.91]
[1724131762130,25.91,147.76,147.68,1.24250153]
[1724131762622,0.04327688,147.73,147.71,0.04729128]
[1724131762929,3.45315274,147.73,147.71,0.04729128]
[1724131763322,3.45315274,147.73,147.71,3.43039128]
[1724131763623,3.45315274,147.73,147.71,0.04729128]
[1724131764025,0.04327688,147.73,147.71,0.04729128]
[1724131765822,29.2929,147.72,147.63,27.04]
[1724131766023,29.2929,147.72,147.64,1.24274872]
[1724131766423,29.2929,147.72,147.67,3.384]
[1724131766620,25.91,147.72,147.67,3.384]
[1724131766824,29.2927,147.73,147.63,56.41365738]
[1724131767021,0.04298303,147.71,147.67,3.3838]
[1724131767618,0.04298303,147.71,147.63,56.41365738]
[1724131767619,0.04298303,147.71,147.66,3.3842]
[1724131767930,25.91,147.69,147.63,3.46365738]
[1724131768123,25.91,147.69,147.6,1.2435]
[1724131768329,0.05087744,147.67,147.64,3.3846]
[1724131768526,0.05087744,147.67,147.63,3.42502098]
[1724131768728,0.05087744,147.67,147.61,25.91]
[1724131768926,0.05087744,147.67,147.62,1.24291098]
[1724131769331,0.05087744,147.67,147.64,3.3845]
[1724131770227,0.05087744,147.67,147.65,3.3844]
[1724131771024,0.05087744,147.67,147.66,3.3843]
[1724131772428,0.05087744,147.67,147.66,6.75464508]
[1724131772631,0.05087744,147.67,147.66,3.3843]
[1724131772828,0.05087744,147.67,147.66,6.85104697]
[1724131773034,0.05087744,147.67,147.66,3.3843]
[1724131773435,0.05087744,147.67,147.66,6.73773247]
[1724131773629,0.05087744,147.67,147.66,3.3843]
[1724131774430,0.05087744,147.67,147.66,6.73367345]
[1724131774720,0.05087744,147.67,147.66,3.3843]
[1724131774927,0.05087744,147.67,147.66,6.68654758]
[1724131776131,25.91,147.74,147.65,1.2652]
[1724131776329,29.30965103,147.74,147.66,1.24267025]
[1724131776530,1300.2764,147.75,147.66,27.15267025]
[1724131776733,1277.80934145,147.75,147.7,3.3832]
[1724131777032,1274.3664,147.75,147.7,3.3832]
[1724131777234,0.05030679,147.74,147.71,0.04546918]
[1724131777543,3.45773657,147.74,147.71,0.04546918]
[1724131777929,0.05030679,147.74,147.73,3.3827]
[1724131778730,3.43100833,147.74,147.73,3.3827]
[1724131779237,0.05030679,147.74,147.73,3.3827]
[1724131779627,3.49762814,147.74,147.73,3.3827]
[1724131780434,3.49762814,147.74,147.72,3.3828]
[1724131781536,3.49762814,147.74,147.72,3.3829]
[1724131785045,3.49762814,147.74,147.73,3.3827]
[1724131785237,0.05030679,147.74,147.73,3.3827]
[1724131785639,3.48633595,147.74,147.73,6.78863897]
[1724131786040,0.05030679,147.74,147.73,3.3827]
[1724131786546,3.47382654,147.74,147.73,6.76328207]
[1724131787539,3.41432235,147.74,147.73,6.70276359]
[1724131788137,0.05030679,147.74,147.73,3.3827]
[1724131788545,3.39674156,147.74,147.73,6.81027686]
[1724131789145,0.05030679,147.74,147.73,6.81027686]
[1724131789638,0.05030679,147.74,147.73,3.3827]
[1724131790038,0.05030679,147.74,147.73,6.73386806]
[1724131790637,0.05030679,147.74,147.73,3.3827]
[1724131790941,1273.0928,147.75,147.74,3.3824]
[1724131791643,1273.0928,147.75,147.74,6.80376632]
[1724131792045,1273.0928,147.75,147.74,3.3824]
[1724131792246,1273.0928,147.75,147.74,29.2924]
[1724131792744,1273.0928,147.75,147.74,32.61742313]
[1724131792947,1273.0928,147.75,147.74,29.2924]
[1724131793146,1266.78972423,147.75,147.74,32.72559794]
[1724131793346,1266.78972423,147.75,147.74,29.2924]
[1724131793743,1266.78972423,147.75,147.74,32.63060694]
[1724131794141,1266.78972423,147.75,147.74,29.2924]
[1724131794744,1266.78972423,147.75,147.74,32.64344869]
[1724131794951,1266.78972423,147.75,147.74,6.73344869]
[1724131797861,1266.78972423,147.75,147.71,0.04546918]
[1724131798550,1266.78972423,147.75,147.72,6.83358818]
[1724131799247,1266.78972423,147.75,147.73,3.3826]
[1724131800251,1266.78972423,147.75,147.74,3.3824]
[1724131801053,1266.78972423,147.75,147.74,29.2924]
[1724131802051,1266.78972423,147.75,147.74,32.74645243]
[1724131802750,1093.57702423,147.75,147.74,29.2924]
[1724131802958,1093.57702423,147.75,147.74,30.53440888]
[1724131803148,1093.57702423,147.75,147.74,33.97561468]
[1724131803652,1093.57702423,147.75,147.74,32.7336058]
[1724131804260,1093.57702423,147.75,147.74,33.97566634]
[1724131805348,1093.57702423,147.75,147.74,32.7336058]
[1724131805553,924.54302423,147.75,147.74,33.97565852]
[1724131806565,924.54302423,147.75,147.74,30.53445272]
[1724131806856,865.94502423,147.75,147.74,30.53445272]
[1724131807052,807.98232381,147.75,147.74,56.44445272]
[1724131807258,807.98232381,147.75,147.74,30.53445272]
[1724131807561,807.98232381,147.75,147.74,33.94925896]
[1724131807762,807.98232381,147.75,147.74,56.44445272]
[1724131807962,807.98232381,147.75,147.74,59.74874415]
[1724131808352,0.04711489,147.76,147.75,3.3822]
[1724131808557,0.04711489,147.76,147.75,30.53425272]
[1724131808957,0.04711489,147.76,147.75,4.62425272]
[1724131809162,0.04711489,147.76,147.75,3.3822]
[1724131813960,0.04711489,147.76,147.74,3.34873489]
[1724131814664,0.04711489,147.76,147.75,3.3822]
[1724131818160,0.04711489,147.76,147.75,29.2922]
[1724131819863,2.5234,147.81,147.8,3.3811]
[1724131820868,914.16488,147.83,147.82,3.3806]
[1724131821072,917.51648925,147.83,147.82,3.3806]
[1724131821271,917.51648925,147.83,147.8,3.38776797]
[1724131821465,914.16488,147.83,147.79,0.05203553]
[1724131821870,914.16488,147.83,147.8,3.3809]
[1724131822074,914.16488,147.83,147.81,3.3637748]
[1724131822266,914.16488,147.83,147.79,0.05203553]
[1724131822467,914.16488,147.83,147.8,3.39317488]
[1724131822871,914.16488,147.83,147.8,6.77407488]
[1724131824374,914.16488,147.83,147.81,3.3808]
[1724131824570,914.16488,147.83,147.79,0.05203553]
[1724131824768,914.16488,147.83,147.79,3.38527915]
[1724131824962,914.16488,147.83,147.79,0.05203553]
[1724131825772,914.16488,147.83,147.8,3.41468236]
[1724131826774,914.16488,147.83,147.81,3.3808]
[1724131826975,914.16488,147.83,147.79,0.05203553]
[1724131827576,29.25435246,147.84,147.79,3.43313553]
[1724131828075,29.25435246,147.84,147.8,3.381]
[1724131828283,29.25435246,147.84,147.79,0.05203553]
[1724131828284,3.34435246,147.84,147.79,0.05203553]
[1724131828690,3.34435246,147.84,147.81,3.3807]
[1724131828987,3.34435246,147.84,147.79,0.05203553]
[1724131829387,3.34435246,147.84,147.78,3.38708079]
[1724131829388,29.25435246,147.84,147.78,3.38708079]
[1724131829691,25.91,147.82,147.73,52.95]
[1724131829887,25.91,147.82,147.73,56.35815441]
[1724131830085,25.91,147.82,147.78,3.3813]
[1724131830389,25.91,147.82,147.73,56.35815441]
[1724131830782,0.04988879,147.79,147.76,0.0455282]
[1724131830981,0.04988879,147.79,147.76,3.4274282]
[1724131831181,0.04988879,147.79,147.73,30.44815441]
[1724131831381,1.39978879,147.79,147.73,3.40815441]
[1724131831583,1.39978879,147.79,147.71,66.19254119]
[1724131831790,1.39978879,147.79,147.71,25.91]
[1724131832180,1.39978879,147.79,147.74,0.04644837]
[1724131832789,1.39978879,147.79,147.75,3.3822]
[1724131832989,1.39978879,147.79,147.74,0.04644837]
[1724131833291,1.39978879,147.79,147.77,3.3816]
[1724131833686,1.39978879,147.79,147.74,3.40741332]
[1724131833992,3.42756223,147.78,147.74,0.04644837]
[1724131834194,27.30978879,147.79,147.74,0.04644837]
[1724131834695,30.74681662,147.79,147.74,3.42874837]
[1724131835093,1.39978879,147.79,147.74,25.95644837]
[1724131835394,1.39978879,147.79,147.75,25.91]
[1724131835581,1.39978879,147.79,147.75,29.31457434]
[1724131835787,1.39978879,147.79,147.78,3.3815]
[1724131835990,1.39978879,147.79,147.76,3.38765913]
[1724131836194,1.39978879,147.79,147.77,0.04498342]
[1724131837194,1.39978879,147.79,147.77,3.42648342]
[1724131837700,1.39978879,147.79,147.77,0.04498342]
[1724131838182,1.39978879,147.79,147.73,25.91]
[1724131838390,1.39978879,147.79,147.71,25.91]
[1724131838588,1.39978879,147.79,147.71,29.37302306]
[1724131838589,1.2494,147.78,147.71,29.37302306]
[1724131838795,1.2494,147.78,147.75,3.3822]
[1724131839097,1.2494,147.78,147.71,29.37302306]
[1724131839098,1.29720939,147.78,147.71,29.37302306]
[1724131839593,1.29720939,147.78,147.71,3.46302306]
[1724131839789,1.29720939,147.78,147.69,25.91]
[1724131840090,0.05043303,147.75,147.7,1.24235419]
[1724131840295,0.05043303,147.75,147.7,4.6430856]
[1724131840497,0.05043303,147.75,147.7,3.40073141]
[1724131840791,0.05043303,147.75,147.74,3.3824]
[1724131840996,0.05133733,147.76,147.73,3.44669638]
[1724131841185,0.05133733,147.76,147.71,25.91]
[1724131841890,0.05133733,147.76,147.74,3.3824]
[1724131842591,0.05133733,147.76,147.75,3.3822]
[1724131845094,0.05133733,147.76,147.75,29.2922]
[1724131845301,0.05133733,147.76,147.75,32.64843439]
[1724131846398,0.05133733,147.76,147.75,29.2922]
[1724131846796,0.05133733,147.76,147.75,32.72346065]
[1724131846999,0.05133733,147.76,147.75,29.2922]
[1724131847199,0.05133733,147.76,147.75,32.65721487]
[1724131847800,0.05133733,147.76,147.75,29.2922]
[1724131848001,0.05133733,147.76,147.75,32.75252767]
[1724131848899,0.05133733,147.76,147.75,6.84252767]
[1724131849096,0.05133733,147.76,147.75,6.80545082]
[1724131861312,0.05133733,147.76,147.75,3.3822]
[1724131862807,0.05133733,147.76,147.75,6.83914778]
[1724131863014,0.05133733,147.76,147.75,3.3822]
[1724131863617,0.05133733,147.76,147.75,6.83610589]
[1724131863811,0.05133733,147.76,147.75,3.3822]
[1724131864116,0.05133733,147.76,147.75,6.74890482]
[1724131865019,0.05133733,147.76,147.75,3.3822]
[1724131865313,25.91,147.85,147.8,3.3809]
[1724131865512,29.24121601,147.85,147.8,3.3809]
[1724131865706,1.2998,147.84,147.76,25.91]
[1724131865914,1.2998,147.84,147.81,3.3806]
[1724131866215,3.40568117,147.83,147.8,3.3046294]
[1724131866413,3.45304032,147.83,147.81,3.3807]
[1724131866715,3.45304032,147.83,147.81,3.41244048]
[1724131866917,0.04735915,147.83,147.82,3.3806]
[1724131867115,3.51117043,147.83,147.82,3.3806]
[1724131867312,0.04735915,147.83,147.82,3.3806]
[1724131867713,3.45304032,147.83,147.82,6.75890594]
[1724131867922,0.04735915,147.83,147.82,6.75890594]
[1724131868218,0.04735915,147.83,147.82,13.7606]
[1724131868419,0.04735915,147.83,147.82,6.79337845]
[1724131868814,0.04735915,147.83,147.82,3.3806]
[1724131869123,0.04735915,147.83,147.82,29.3206]
[1724131869507,0.04735915,147.83,147.82,32.62816659]
[1724131869911,0.04735915,147.83,147.82,29.3206]
[1724131870520,0.04735915,147.83,147.82,33.90536376]
[1724131870819,0.04735915,147.83,147.81,3.41669263]
[1724131871319,0.04735915,147.83,147.8,3.43104599]
[1724131871524,0.04735915,147.83,147.8,6.79402023]
[1724131872616,0.04735915,147.83,147.8,3.45696373]
[1724131873225,0.04735915,147.83,147.8,6.83786373]
[1724131873921,0.04735915,147.83,147.8,3.45696373]
[1724131875012,0.04735915,147.83,147.8,6.83796373]
[1724131875209,0.04735915,147.83,147.8,3.45696373]
[1724131876521,0.04735915,147.83,147.81,3.3808]
[1724131876916,0.04735915,147.83,147.8,0.04994599]
[1724131877429,2.59835915,147.83,147.8,0.04994599]
[1724131877720,25.94,147.82,147.76,3.43674672]
[1724131877924,25.94,147.8,147.75,40.27393906]
[1724131878125,3.41985354,147.79,147.71,100.70711206]
[1724131878429,25.94,147.8,147.72,1.24212935]
[1724131878625,25.94,147.8,147.76,3.3818]
[1724131878827,0.04926632,147.77,147.76,3.3818]
[1724131880712,0.04926632,147.77,147.76,29.3218]
[1724131881121,0.04926632,147.77,147.76,3.3818]
[1724131881921,0.04926632,147.77,147.74,3.3823]
[1724131882313,0.04926632,147.77,147.74,6.74630091]
[1724131882518,0.04926632,147.77,147.75,3.3822]
[1724131883316,25.98926632,147.77,147.71,40.2804159]
[1724131883516,1.2774,147.76,147.7,40.2804159]
[1724131883722,25.94,147.75,147.7,40.2804159]
[1724131883918,3.50947709,147.74,147.68,3.3836]
[1724131884118,3.50947709,147.74,147.69,1.24246279]
[1724131884415,3.50947709,147.74,147.69,6.75517465]
[1724131884621,0.05083936,147.74,147.69,3.3834]
[1724131885020,3.40978354,147.74,147.69,3.3834]
[1724131885322,0.05083936,147.74,147.7,1.24210572]
[1724131885622,0.05083936,147.74,147.71,25.94]
[1724131885925,0.05083936,147.74,147.72,1.24210572]
[1724131886318,0.05083936,147.74,147.72,4.62480572]
[1724131886511,0.05083936,147.74,147.73,1.24210572]
[1724131886919,0.05083936,147.74,147.72,3.3827]
[1724131887115,0.05083936,147.74,147.73,3.3827]
[1724131887316,0.05083936,147.74,147.73,30.56478678]
[1724131887823,0.05083936,147.74,147.73,33.96391121]
[1724131888527,0.05083936,147.74,147.73,30.56475208]
[1724131889823,1.3487,147.8,147.73,27.18205208]
[1724131890019,1.3487,147.8,147.76,25.94]
[1724131890723,1.3487,147.8,147.79,3.3813]
[1724131891428,0.04617515,147.81,147.8,3.3811]
[1724131891622,0.04617515,147.81,147.8,29.3211]
[1724131891816,1.2875,147.85,147.83,3.3803]
[1724131892829,1.33827257,147.85,147.83,3.3803]
[1724131893026,1.33827257,147.85,147.84,3.3801]
[1724131894526,1.33827257,147.85,147.83,3.42485748]
[1724131895726,1.33827257,147.85,147.84,3.3801]
[1724131896928,0.05077257,147.85,147.84,3.3801]
[1724131897131,0.05077257,147.85,147.84,32.662019]
[1724131897332,0.05077257,147.85,147.84,29.3201]
[1724131897529,0.05077257,147.85,147.84,32.64478913]
[1724131898130,3.8695,147.9,147.87,3.3793]
[1724131899233,3.91915581,147.9,147.87,3.42255908]
[1724131899432,3.91915581,147.9,147.87,0.04325908]
[1724131899932,2.60595581,147.9,147.87,0.04325908]
[1724131901138,31.92475581,147.9,147.8,25.94]
[1724131901333,31.8751,147.9,147.8,25.94]
[1724131901534,31.8751,147.9,147.81,1.24144588]
[1724131901736,31.8751,147.9,147.84,3.3801]
[1724131902338,0.04639523,147.88,147.86,0.04945204]
[1724131902542,0.04639523,147.88,147.84,3.3801]
[1724131903441,0.04639523,147.88,147.85,3.3799]
[1724131903741,0.04639523,147.88,147.85,3.42375349]
[1724131904935,25.94,147.86,147.73,68.34888352]
[1724131905245,25.94,147.86,147.77,4.61248829]
[1724131905442,25.94,147.86,147.76,1.3336]
[1724131905636,25.94,147.84,147.8,3.3809]
[1724131905840,1.264,147.83,147.8,3.3809]
[1724131906041,1.30658904,147.83,147.8,3.40286318]
[1724131906545,1.30658904,147.83,147.81,3.3808]
[1724131909154,1.30658904,147.83,147.82,3.3806]
[1724131910358,0.04258904,147.83,147.82,3.3806]
[1724131912359,0.04258904,147.83,147.82,6.79471359]
[1724131913156,0.04258904,147.83,147.82,8.03603705]
[1724131913357,1.3621,147.9,147.86,3.3796]
[1724131914662,0.04668609,147.89,147.87,0.0507936]
[1724131915265,0.04668609,147.89,147.87,3.4301936]
[1724131915965,0.04668609,147.89,147.88,3.3792]
[1724131916462,0.04668609,147.89,147.88,29.3192]
[1724131916965,0.04668609,147.89,147.88,6.82278625]
[1724131918759,0.04668609,147.89,147.88,3.3792]
[1724131918961,0.04668609,147.89,147.88,6.79775574]
[1724131923070,25.94,147.95,147.92,3.3782]
[1724131923972,25.94,147.95,147.91,3.3785]
[1724131924163,25.99195798,147.95,147.92,0.04331806]
[1724131926466,25.99195798,147.95,147.92,3.42161806]
[1724131926666,25.99195798,147.95,147.92,0.04331806]
[1724131926964,29.41500932,147.95,147.92,0.04331806]
[1724131927171,3.47500932,147.95,147.92,0.04331806]
[1724131927364,25.99195798,147.95,147.92,0.04331806]
[1724131928471,25.99195798,147.95,147.92,3.42151806]
[1724131929179,0.05195798,147.95,147.92,3.42151806]
[1724131929364,25.94,147.94,147.92,3.42151806]
[1724131930269,25.94,147.94,147.93,3.3781]
[1724131930470,0.05195798,147.95,147.92,0.04331806]
[1724131930661,0.05195798,147.95,147.84,1.24098158]
[1724131930662,25.94,147.94,147.84,1.24098158]
[1724131930867,3.29598631,147.96,147.83,27.2368]
[1724131931064,25.94,147.89,147.83,3.32378825]
[1724131931373,29.24420478,147.89,147.85,3.3797]
[1724131931671,0.04970693,147.88,147.86,0.04993822]
[1724131933869,0.04970693,147.88,147.87,3.3795]
[1724131934073,0.00638887,147.88,147.87,6.78458023]
[1724131934264,0.00638887,147.88,147.87,3.3795]
[1724131934873,0.00638887,147.88,147.87,6.77579816]
[1724131935077,0.00638887,147.88,147.87,4.62043939]
[1724131935265,0.00638887,147.88,147.87,7.94073883]
[1724131936475,0.00638887,147.88,147.87,3.3795]
[1724131936969,0.00638887,147.88,147.87,6.71736359]
[1724131937172,0.00638887,147.88,147.87,3.3795]
[1724131937667,0.00638887,147.88,147.86,3.42953822]
[1724131938066,0.00638887,147.88,147.86,0.04993822]
[1724131938674,0.00638887,147.88,147.87,3.3795]
[1724131943278,0.00638887,147.88,147.87,6.67234032]
[1724131943485,3.8267,147.96,147.92,3.3782]
[1724131943783,7.24278547,147.96,147.92,3.3782]
[1724131944378,7.24278547,147.96,147.91,3.3785]
[1724131944581,0.04882129,147.95,147.93,0.04332433]
[1724131944775,0.04882129,147.95,147.84,1.3464]
[1724131944975,7.24278547,147.96,147.89,3.3788]
[1724131945185,10.62038547,147.96,147.87,29.32873518]
[1724131945886,0.04329665,147.93,147.9,0.04468774]
[1724131946184,0.04329665,147.93,147.9,3.42328774]
[1724131949386,0.04329665,147.93,147.92,3.3783]
[1724131955189,0.04329665,147.93,147.9,0.04468774]
[1724131955590,4.74899665,147.93,147.9,0.04468774]
[1724131956795,1.37079665,147.93,147.9,0.04468774]
[1724131957092,1.37079665,147.93,147.9,3.42348774]
[1724131959183,0.04329665,147.93,147.9,0.04468774]
[1724131959389,0.04329665,147.93,147.9,25.98468774]
[1724131960196,0.04329665,147.93,147.9,0.04468774]
[1724131960790,0.04329665,147.93,147.9,3.42328774]
[1724131960985,0.04329665,147.93,147.9,0.04468774]
[1724131962899,0.04329665,147.93,147.92,3.3783]
[1724131963902,0.04329665,147.93,147.9,0.04468774]
[1724131964502,0.04329665,147.93,147.91,3.3785]
[1724131965795,0.04329665,147.93,147.9,0.04468774]
[1724131965796,0.04329665,147.93,147.92,3.3783]
[1724131968407,0.04329665,147.93,147.9,0.04468774]
[1724131970004,27.24969665,147.93,147.84,25.94]
[1724131970203,3.3784,147.92,147.86,3.3795]
[1724131970505,3.3784,147.92,147.84,25.94]
[1724131971098,0.04859178,147.89,147.87,0.02961511]
[1724131973200,0.04859178,147.89,147.87,3.40901511]
[1724131974296,0.04859178,147.89,147.87,0.02961511]
[1724131975605,0.04859178,147.89,147.84,3.38]
[1724131976602,0.04859178,147.89,147.81,25.94]
[1724131976809,0.04859178,147.89,147.83,25.94]
[1724131977008,0.04859178,147.89,147.85,3.3798]
[1724131977211,0.04859178,147.89,147.83,25.94]
[1724131977713,0.04859178,147.89,147.85,3.3797]
[1724131979616,3.42759178,147.89,147.85,3.3797]
[1724131979815,0.04859178,147.89,147.85,3.3797]
[1724131981015,3.42769178,147.89,147.85,3.3797]
[1724131983925,3.3792,147.88,147.81,25.94]
[1724131984312,0.04585532,147.86,147.81,25.94]
[1724131984921,0.04585532,147.86,147.85,3.3799]
[1724131987024,0.04585532,147.86,147.84,3.3801]
[1724131988323,0.04585532,147.86,147.85,3.3799]
[1724131989017,0.04585532,147.86,147.84,3.38]
[1724131989216,0.04585532,147.86,147.79,25.94]
[1724131989822,0.04585532,147.86,147.79,29.26288312]
[1724131990132,0.04585532,147.86,147.79,25.94]
[1724131990623,3.42565532,147.86,147.79,25.94]
[1724131991125,3.42565532,147.86,147.82,3.3806]
[1724131993419,0.04585532,147.86,147.8,3.381]
[1724131993620,0.04585532,147.86,147.78,30.65334487]
[1724131994021,0.04585532,147.86,147.82,3.3804]
[1724131994918,3.42555532,147.86,147.82,3.3804]
[1724131995629,10.38,147.85,147.76,27.02]
[1724131995830,10.38,147.85,147.78,10.38]
[1724131996128,0.04705714,147.82,147.78,10.38]
[1724131996727,0.04705714,147.82,147.79,10.38]
[1724131996923,0.04705714,147.82,147.8,3.3811]
[1724131997123,0.04705714,147.82,147.79,10.38]
[1724131997921,0.04705714,147.82,147.8,3.3811]
[1724131999721,0.04705714,147.82,147.79,10.38]
[1724131999922,0.04705714,147.82,147.76,27.02]
[1724132000131,0.04705714,147.82,147.81,10.38]
[1724132000823,0.04705714,147.82,147.76,27.02]
[1724132001029,0.04705714,147.82,147.77,14.96857269]
[1724132001229,0.04705714,147.82,147.77,13.72687505]
[1724132001434,0.04705714,147.82,147.77,3.34687505]
[1724132001732,0.04705714,147.82,147.78,10.38]
[1724132002135,0.04705714,147.82,147.79,10.38]
[1724132002831,0.04705714,147.82,147.79,13.7611]
[1724132005129,0.04705714,147.82,147.76,27.02]
[1724132005333,10.38,147.79,147.75,40.27474999]
[1724132005527,10.38,147.76,147.75,40.27474999]
[1724132005732,3.45476556,147.76,147.7,10.38]
[1724132005927,0.04467316,147.74,147.71,1.24185748]
[1724132006436,0.04467316,147.74,147.72,1.24186867]
[1724132006634,0.04467316,147.74,147.73,1.24186867]
[1724132007039,0.04467316,147.74,147.7,10.38]
[1724132007339,0.04467316,147.74,147.71,4.62499684]
[1724132007538,0.04467316,147.74,147.72,1.24209684]
[1724132007842,0.04467316,147.74,147.71,3.3829]
[1724132008631,0.04467316,147.74,147.7,10.38]
[1724132008632,10.42467316,147.74,147.7,3.3832]
[1724132008839,10.38,147.71,147.66,20.14551092]
[1724132009142,41.52,147.73,147.63,3.3849]
[1724132009143,10.38,147.67,147.63,3.3849]
[1724132009349,0.04669598,147.66,147.63,3.3849]
[1724132009641,0.04669598,147.66,147.62,3.3851]
[1724132009838,0.04669598,147.66,147.63,10.38]
[1724132010046,0.04669598,147.66,147.64,10.38]
[1724132010235,10.38,147.73,147.64,10.42669598]
[1724132010433,1.3015,147.74,147.6,1.2604]
[1724132010434,1.3015,147.74,147.66,25.98]
[1724132010839,1.3015,147.74,147.69,3.3834]
[1724132011237,0.05054736,147.73,147.7,0.04669598]
[1724132011745,0.05054736,147.73,147.7,26.02669598]
[1724132011935,0.05054736,147.73,147.72,3.3829]
[1724132012443,25.98,147.79,147.7,26.02669598]
[1724132012643,29.3609,147.81,147.72,25.98]
[1724132013542,0.04930606,147.78,147.75,0.04312128]
[1724132014835,0.04930606,147.78,147.75,3.42522128]
[1724132015036,0.04930606,147.78,147.75,0.04312128]
[1724132015440,0.04930606,147.78,147.77,3.3817]
[1724132015748,731.71494,147.82,147.74,25.98]
[1724132015936,731.71494,147.82,147.75,1.24190824]
[1724132016139,735.13517166,147.82,147.75,4.56647618]
[1724132016335,731.71494,147.82,147.74,25.98]
[1724132016649,0.05185643,147.79,147.78,3.3815]
[1724132017044,731.71494,147.82,147.77,26.03140951]
[1724132017235,731.71494,147.82,147.81,3.3808]
[1724132017435,731.71494,147.82,147.77,25.98]
[1724132017646,731.71494,147.82,147.8,3.381]
[1724132017945,731.71494,147.82,147.77,29.29172263]
[1724132018249,731.71494,147.82,147.78,1.24163201]
[1724132018645,0.04299625,147.81,147.78,1.2885808]
[1724132019843,0.04299625,147.81,147.8,3.3811]
[1724132022743,0.04299625,147.81,147.79,3.3811]
[1724132023145,0.04299625,147.81,147.78,0.04694879]
[1724132025242,0.04299625,147.81,147.78,1.28862064]
[1724132025647,0.04299625,147.81,147.78,0.04694879]
[1724132025851,0.04299625,147.81,147.78,1.28862802]
[1724132026854,0.04299625,147.81,147.8,3.3811]
[1724132029243,0.04299625,147.81,147.79,3.3813]
[1724132029849,25.98,147.8,147.78,0.04694879]
[1724132030847,0.04299625,147.81,147.78,0.04694879]
[1724132031850,0.04299625,147.81,147.8,3.3811]
[1724132041449,0.04299625,147.81,147.78,0.04694879]
[1724132041755,26.02299625,147.81,147.78,0.04694879]
[1724132044562,26.02299625,147.81,147.79,3.3812]
[1724132046163,26.02299625,147.81,147.78,3.42824879]
[1724132046464,26.02299625,147.81,147.78,0.04694879]
[1724132046659,26.02299625,147.81,147.78,3.42834879]
[1724132046855,25.98,147.79,147.78,0.04694879]
[1724132047060,29.430526,147.79,147.78,0.04694879]
[1724132047360,29.430526,147.79,147.76,3.3818]
[1724132047562,1.3055,147.78,147.76,3.3818]
[1724132047763,27.2855,147.78,147.76,3.3818]
[1724132048164,731.71494,147.82,147.72,27.04]
[1724132048466,0.04978258,147.78,147.76,0.04917692]
[1724132048667,0.04978258,147.78,147.76,1.29105292]
[1724132049470,731.71494,147.82,147.77,25.98]
[1724132050271,731.71494,147.82,147.81,3.3808]
[1724132051465,731.71494,147.82,147.8,3.42623648]
[1724132052065,731.71494,147.82,147.81,3.3808]
[1724132055876,731.71494,147.82,147.8,3.42623648]